fUSD/lending_fUSD_20250503
["ID","MTS","AMOUNT","RATE_DAILY","PERIOD"]
[359696425,1746259650293,-487.50949024,0.0001979,2]
[359696426,1746259650318,-450.0,0.0001979,2]
[359696427,1746259650344,-465.24,0.0001979,2]
[359696428,1746259650369,-4513.99,0.0001979,2]
[359696429,1746259650394,-669.78,0.0001979,2]
[359696430,1746259650418,-860.87,0.0001979,2]
[359696431,1746259650443,-23650.18,0.0001979,2]
[359696432,1746259650468,-450.0,0.0001979,2]
[359696433,1746259650492,-759.14,0.0001979,2]
[359696434,1746259650516,-1533.18,0.0001979,2]
[359696435,1746259650540,-450.0,0.0001979,2]
[359696436,1746259650566,-527.4,0.0001979,2]
[359696437,1746259650591,-14720.65,0.0001979,2]
[359696438,1746259650616,-166.88735199,0.0001979,2]
[359696439,1746259650640,-450.0,0.0001979,2]
[359696440,1746259650666,-450.0,0.0001979,2]
[359696441,1746259650690,-450.0,0.0001979,2]
[359696442,1746259650714,-974.11,0.0001979,2]
[359696443,1746259650739,-450.0,0.0001979,2]
[359696444,1746259650763,-500.0,0.0001979,2]
[359696445,1746259650787,-715.23,0.0001979,2]
[359696446,1746259650811,-450.0,0.0001979,2]
[359696447,1746259650835,-468.25007224,0.0001979,2]
[359696448,1746259650859,-450.0,0.0001979,2]
[359696449,1746259650882,-450.0,0.0001979,2]
[359696450,1746259650906,-450.0,0.0001979,2]
[359696451,1746259650932,-660.93,0.0001979,2]
[359696452,1746259650957,-788.01,0.0001979,2]
[359696453,1746259650980,-500.0,0.00019798,2]
[359696454,1746259651006,-268.4102267,0.00019799,2]
[359696455,1746259651033,-165.36177939,0.00019844,2]
[359696456,1746259651057,-151.0,0.00019844,2]
[359696457,1746259651082,-151.0,0.00019844,2]
[359696458,1746259651107,-668.65185757,0.00019844,2]
[359696459,1746259651132,-207.4,0.00019844,2]
[359696460,1746259651159,-3565.25758165,0.00019888,2]
[359696461,1746259651185,-1940.34916682,0.00019888,2]
[359696462,1746259651212,-13026.10544434,0.00019889,2]
[359696463,1746259651238,-1940.34916682,0.00019891,2]
[359696464,1746259651264,-13026.10544434,0.00019891,2]
[359696465,1746259651289,-13026.10544434,0.00019892,2]
[359696466,1746259651316,-1940.34916682,0.00019894,2]
[359696467,1746259651342,-13026.10544434,0.00019894,2]
[359696468,1746259651370,-13026.10544434,0.00019895,2]
[359696469,1746259651396,-1940.34916682,0.00019897,2]
[359696470,1746259651422,-13026.10544434,0.00019897,2]
[359696471,1746259651448,-13026.10544434,0.00019898,2]
[359696472,1746259651472,-564.91520106,0.000199,2]
[359696473,1746259651497,-1940.34916682,0.000199,2]
[359696474,1746259651522,-205.57268741,0.000199,3]
[359696475,1746259651548,-164.335077,0.000199,2]
[359696476,1746259651574,-13026.10544434,0.000199,2]
[359696477,1746259651599,-1304.152961,0.000199,2]
[359696478,1746259651624,-5506.83746562,0.000199,2]
[359696479,1746259651649,-150.77412911,0.00019913,2]
[359696480,1746259651674,-500.0,0.00019918,2]
[359696481,1746259651700,-4326.142,0.00019922,2]
[359696482,1746259651725,-323.067,0.00019922,2]
[359696483,1746259651750,-150.77412911,0.00019926,2]
[359696484,1746259651774,-150.77412911,0.0001994,2]
[359696485,1746259651798,-150.77412911,0.00019953,2]
[359696486,1746259651822,-150.77412911,0.00019966,2]
[359696487,1746259651847,-450.0,0.00019972,2]
[359696488,1746259651871,-458.8523103,0.00019972,2]
[359696489,1746259651898,-582.19895852,0.00019972,2]
[359696490,1746259651923,-464.20263314,0.00019972,2]
[359696491,1746259651947,-450.0,0.00019972,2]
[359696492,1746259651972,-450.0,0.00019972,2]
[359696493,1746259651997,-450.0,0.00019972,2]
[359696494,1746259652022,-24428.0,0.00019973,2]
[359696495,1746259652046,-959.0,0.00019973,2]
[359696496,1746259652070,-500.0,0.00019973,2]
[359696497,1746259652096,-500.0,0.00019973,2]
[359696498,1746259652120,-243.83231524,0.00019973,2]
[359696499,1746259652146,-500.0,0.00019973,2]
[359696500,1746259652170,-500.0,0.00019973,2]
[359696501,1746259652194,-500.0,0.00019973,2]
[359696502,1746259652218,-500.0,0.00019973,2]
[359696503,1746259652241,-303.17184781,0.00019973,2]
[359696504,1746259652265,-502.06385384,0.00019973,2]
[359696505,1746259652289,-500.0,0.00019985,2]
[359696506,1746259652313,-500.0,0.00019985,2]
[359696507,1746259652339,-307.28042963,0.00019985,2]
[359696508,1746259652364,-500.0,0.00019985,2]
[359696509,1746259652391,-316.39351617,0.00019985,2]
[359696510,1746259652416,-500.0,0.00019985,2]
[359696511,1746259652441,-500.0,0.00019985,2]
[359696512,1746259652465,-500.0,0.00019985,2]
[359696513,1746259652491,-500.0,0.00019985,2]
[359696514,1746259652515,-500.0,0.00019985,2]
[359696515,1746259652695,-500.0,0.00019985,2]
[359696516,1746259652720,-500.0,0.00019985,2]
[359696517,1746259652745,-500.0,0.00019985,2]
[359696518,1746259652769,-500.0,0.00019985,2]
[359696519,1746259652794,-500.0,0.00019985,2]
[359696520,1746259652818,-500.0,0.00019985,2]
[359696521,1746259652841,-500.0,0.00019985,2]
[359696522,1746259652865,-500.0,0.00019985,2]
[359696523,1746259652890,-500.0,0.00019985,2]
[359696524,1746259652914,-500.0,0.00019985,2]
[359696525,1746259652939,-500.0,0.00019985,2]
[359696526,1746259652963,-500.0,0.00019985,2]
[359696527,1746259652987,-201.37488882,0.00019985,2]
[359696528,1746259653012,-150.0,0.00019985,2]
[359696529,1746259653036,-150.0,0.00019985,2]
[359696530,1746259653060,-152.67875405,0.00019985,2]
[359696531,1746259653085,-150.0,0.00019985,2]
[359696532,1746259653111,-500.0,0.00019985,2]
[359696533,1746259653137,-500.0,0.00019985,2]
[359696534,1746259653161,-500.0,0.00019985,2]
[359696535,1746259653188,-500.0,0.00019985,2]
[359696536,1746259653214,-206.99090011,0.00019985,2]
[359696537,1746259653242,-500.0,0.00019985,2]
[359696538,1746259653269,-500.0,0.00019985,2]
[359696539,1746259653296,-500.0,0.00019985,2]
[359696540,1746259653324,-500.0,0.00019985,2]
[359696541,1746259653353,-500.0,0.00019985,2]
[359696542,1746259653380,-185.4466197,0.00019985,2]
[359696543,1746259653407,-2133.0,0.00019986,2]
[359696544,1746259653432,-15523.5522693,0.00019986,2]
[359696545,1746259653458,-2593.4382714,0.00019986,2]
[359696546,1746259653486,-115904.62892502,0.00019986,2]
[359696547,1746259654774,2917.760099,0.00018951,2]
[359696548,1746259654800,1853.949901,0.00018951,2]
[359696549,1746259690829,250.0,0.00017,2]
[359696550,1746259691911,300.0,0.00019,2]
[359696565,1746259831479,-1155.42448444,0.00019788,2]
[359696740,1746259834275,-44.57551556,0.00019788,2]
[359696741,1746259834286,-300.0,0.00019788,2]
[359696742,1746259834298,-450.0,0.00019789,2]
[359696743,1746259834309,-450.0,0.00019789,2]
[359696744,1746259834320,-433.46962409,0.00019789,2]
[359696745,1746259834339,-16.53037591,0.00019789,2]
[359696746,1746259834351,-450.0,0.00019789,2]
[359696747,1746259834363,-125.92431904,0.00019789,2]
[359696757,1746259837526,-324.07568096,0.00019789,2]
[359696758,1746259837538,-1848.65,0.00019789,2]
[359696759,1746259837551,-354.46451784,0.00019789,2]
[359696760,1746259837562,-450.0,0.00019789,2]
[359696761,1746259837572,-450.0,0.00019789,2]
[359696762,1746259837583,-471.74365121,0.00019789,2]
[359696763,1746259837594,-450.0,0.00019789,2]
[359696764,1746259837604,-450.0,0.00019789,2]
[359696765,1746259837615,-1521.48,0.00019789,2]
[359696766,1746259837625,-450.0,0.00019789,2]
[359696767,1746259837635,-530.76,0.00019789,2]
[359696768,1746259837645,-1069.64455029,0.00019789,2]
[359696775,1746259838055,-456.57942005,0.00019789,2]
[359696778,1746259838076,-565.87,0.00019789,2]
[359696779,1746259838088,-462.29463356,0.00019789,2]
[359696780,1746259838099,-574.77588234,0.00019789,2]
[359696781,1746259838108,-2012.61,0.00019789,2]
[359696782,1746259838118,-466.79,0.00019789,2]
[359696783,1746259838127,-450.0,0.00019789,2]
[359696784,1746259838137,-501.05114322,0.00019789,2]
[359696785,1746259838149,-450.0,0.00019789,2]
[359696786,1746259838160,-450.0,0.00019789,2]
[359696787,1746259838169,-450.0,0.00019789,2]
[359696788,1746259838179,-473.65,0.00019789,2]
[359696789,1746259838188,-450.0,0.00019789,2]
[359696790,1746259838198,-458.9,0.00019789,2]
[359696791,1746259838210,-677.57,0.00019789,2]
[359696792,1746259838220,-240.41050488,0.00019789,2]
[359696793,1746259838230,-477.69,0.00019789,2]
[359696794,1746259838239,-523.37,0.00019789,2]
[359696795,1746259838248,-450.0,0.00019789,2]
[359696796,1746259838258,-450.0,0.00019789,2]
[359696797,1746259838267,-450.0,0.00019789,2]
[359696798,1746259838276,-518.46205323,0.00019789,2]
[359696799,1746259838285,-450.0,0.00019789,2]
[359696800,1746259838295,-450.0,0.00019789,2]
[359696801,1746259838304,-514.2211624,0.00019789,2]
[359696802,1746259838313,-467.35916383,0.00019789,2]
[359696803,1746259838323,-450.0,0.00019789,2]
[359696804,1746259838332,-1776.44,0.00019789,2]
[359696805,1746259838341,-450.0,0.00019789,2]
[359696806,1746259838352,-466.13170006,0.00019789,2]
[359696807,1746259838361,-454.0483638,0.00019789,2]
[359696808,1746259838371,-450.0,0.00019789,2]
[359696809,1746259838380,-716.95,0.00019789,2]
[359696810,1746259838390,-516.14,0.00019789,2]
[359696811,1746259838400,-456.92929735,0.00019789,2]
[359696812,1746259838410,-450.0,0.00019789,2]
[359696813,1746259838419,-519.05,0.00019789,2]
[359696814,1746259838428,-512.05,0.00019789,2]
[359696815,1746259838440,-450.0,0.00019789,2]
[359696816,1746259838449,-636.85,0.00019789,2]
[359696817,1746259838458,-450.0,0.00019789,2]
[359696818,1746259838468,-4215.3,0.00019789,2]
[359696819,1746259838477,-1208.47,0.00019789,2]
[359696820,1746259838488,-470.46708067,0.00019789,2]
[359696821,1746259838498,-535.29,0.00019789,2]
[359696822,1746259838509,-1232.99,0.00019789,2]
[359696823,1746259838518,-465.84947201,0.00019789,2]
[359696824,1746259838529,-500.0,0.00019789,2]
[359696825,1746259838539,-580.83,0.00019789,2]
[359696826,1746259838548,-450.0,0.00019789,2]
[359696827,1746259838558,-450.0,0.00019789,2]
[359696828,1746259838568,-450.0,0.00019789,2]
[359696829,1746259838577,-718.81,0.00019789,2]
[359696830,1746259838587,-450.0,0.00019789,2]
[359696831,1746259838596,-556.93102771,0.00019789,2]
[359696832,1746259838605,-450.0,0.00019789,2]
[359696833,1746259838614,-450.0,0.00019789,2]
[359696834,1746259838623,-450.0,0.00019789,2]
[359696835,1746259838632,-450.0,0.00019789,2]
[359696836,1746259838641,-450.0,0.00019789,2]
[359696837,1746259838650,-450.0,0.00019789,2]
[359696838,1746259838659,-1188.93326787,0.00019789,2]
[359696839,1746259838749,-1748.79673213,0.00019789,2]
[359696840,1746259838758,-170.62748376,0.00019789,2]
[359696841,1746259838793,-279.37251624,0.00019789,2]
[359696842,1746259838803,-450.0,0.00019789,2]
[359696843,1746259838812,-484.24,0.00019789,2]
[359696844,1746259838821,-450.0,0.00019789,2]
[359696845,1746259838830,-462.41,0.00019789,2]
[359696846,1746259838839,-450.0,0.00019789,2]
[359696847,1746259838849,-450.0,0.00019789,2]
[359696848,1746259838858,-450.0,0.00019789,2]
[359696849,1746259838868,-800.07,0.00019789,2]
[359696850,1746259838878,-450.0,0.00019789,2]
[359696851,1746259838887,-771.42,0.00019789,2]
[359696852,1746259838897,-450.0,0.00019789,2]
[359696853,1746259838906,-450.0,0.00019789,2]
[359696854,1746259838916,-450.0,0.00019789,2]
[359696855,1746259838926,-450.0,0.00019789,2]
[359696856,1746259838937,-450.0,0.00019789,2]
[359696857,1746259838946,-665.47,0.00019789,2]
[359696858,1746259838957,-450.0,0.00019789,2]
[359696859,1746259838967,-450.0,0.00019789,2]
[359696860,1746259838976,-226.09894952,0.00019789,2]
[359696861,1746259838987,-999.0,0.00019789,2]
[359696862,1746259838997,-497.35,0.00019789,2]
[359696863,1746259839007,-1142.39,0.00019789,2]
[359696864,1746259839017,-767.64,0.00019789,2]
[359696865,1746259839027,-691.92,0.00019789,2]
[359696866,1746259839037,-973.01,0.00019789,2]
[359696867,1746259839046,-450.69464878,0.00019789,2]
[359696868,1746259839056,-450.0,0.00019789,2]
[359696869,1746259839067,-450.0,0.00019789,2]
[359696870,1746259839077,-450.0,0.00019789,2]
[359696871,1746259839088,-450.0,0.00019789,2]
[359696872,1746259839098,-568.31,0.00019789,2]
[359696873,1746259839108,-357.10844906,0.00019789,2]
[359696876,1746259839538,-691.65155094,0.00019789,2]
[359696877,1746259839547,-250.0,0.00019789,2]
[359696878,1746259839557,-1344.35,0.00019789,2]
[359696879,1746259839567,-450.0,0.00019789,2]
[359696880,1746259839576,-547.3,0.00019789,2]
[359696881,1746259839585,-531.43,0.00019789,2]
[359696882,1746259839595,-450.0,0.00019789,2]
[359696883,1746259839604,-574.17,0.00019789,2]
[359696884,1746259839614,-450.0,0.00019789,2]
[359696885,1746259839623,-453.64158599,0.00019789,2]
[359696886,1746259839633,-450.0,0.00019789,2]
[359696887,1746259839642,-450.0,0.00019789,2]
[359696888,1746259839652,-5024.86,0.00019789,2]
[359696889,1746259839661,-554.58,0.00019789,2]
[359696890,1746259839671,-450.0,0.00019789,2]
[359696891,1746259839681,-450.0,0.00019789,2]
[359696892,1746259839691,-567.27,0.00019789,2]
[359696893,1746259839700,-931.73,0.00019789,2]
[359696894,1746259839709,-463.64256964,0.00019789,2]
[359696895,1746259839720,-450.0,0.00019789,2]
[359696896,1746259839730,-464.20793038,0.00019789,2]
[359696897,1746259839740,-450.0,0.00019789,2]
[359696898,1746259839750,-933.52,0.00019789,2]
[359696899,1746259839759,-450.0,0.00019789,2]
[359696900,1746259839769,-5171.49,0.00019789,2]
[359696901,1746259839779,-450.0,0.00019789,2]
[359696902,1746259839788,-450.0,0.00019789,2]
[359696903,1746259839797,-450.0,0.00019789,2]
[359696904,1746259839806,-450.0,0.00019789,2]
[359696905,1746259839816,-454.86,0.00019789,2]
[359696906,1746259839825,-151.71960003,0.00019789,2]
[359696907,1746259839834,-450.0,0.00019789,2]
[359696908,1746259839843,-450.0,0.00019789,2]
[359696909,1746259839852,-462.20981104,0.00019789,2]
[359696910,1746259839861,-450.0,0.00019789,2]
[359696911,1746259839871,-152.32581017,0.00019789,2]
[359696912,1746259839880,-4508.27,0.00019789,2]
[359696913,1746259839889,-464.37658842,0.00019789,2]
[359696914,1746259839899,-450.0,0.00019789,2]
[359696915,1746259839908,-450.0,0.00019789,2]
[359696916,1746259839917,-465.23860558,0.00019789,2]
[359696917,1746259839927,-450.0,0.00019789,2]
[359696918,1746259839936,-450.0,0.00019789,2]
[359696919,1746259839945,-450.0,0.00019789,2]
[359696920,1746259839955,-450.0,0.00019789,2]
[359696921,1746259839964,-450.0,0.00019789,2]
[359696922,1746259839973,-450.0,0.00019789,2]
[359696923,1746259839983,-463.48474594,0.00019789,2]
[359696924,1746259839992,-450.0,0.00019789,2]
[359696925,1746259840001,-450.0,0.00019789,2]
[359696926,1746259840010,-633.39,0.00019789,2]
[359696927,1746259840019,-480.48093408,0.00019789,2]
[359696928,1746259840028,-450.0,0.00019789,2]
[359696929,1746259840038,-525.17372169,0.00019789,2]
[359696930,1746259840047,-450.0,0.00019789,2]
[359696931,1746259840056,-450.0,0.00019789,2]
[359696932,1746259840065,-645.0,0.00019789,2]
[359696933,1746259840074,-4643.8,0.00019789,2]
[359696934,1746259840083,-995.08,0.00019789,2]
[359696935,1746259840093,-450.0,0.00019789,2]
[359696936,1746259840102,-453.69434651,0.00019789,2]
[359696937,1746259840113,-510.5,0.00019789,2]
[359696938,1746259840122,-157.52585639,0.00019789,2]
[359696939,1746259840133,-450.0,0.00019789,2]
[359696940,1746259840143,-450.0,0.00019789,2]
[359696941,1746259840152,-450.0,0.00019789,2]
[359696942,1746259840162,-450.0,0.00019789,2]
[359696943,1746259840171,-450.0,0.00019789,2]
[359696944,1746259840180,-238.83526685,0.00019789,2]
[359696945,1746259840190,-450.0,0.00019789,2]
[359696946,1746259840200,-450.0,0.00019789,2]
[359696947,1746259840210,-450.0,0.00019789,2]
[359696948,1746259840219,-450.0,0.0001979,2]
[359696949,1746259840229,-2012.61,0.0001979,2]
[359696950,1746259840238,-2012.61,0.0001979,2]
[359696951,1746259840248,-500.0,0.0001979,2]
[359696952,1746259840257,-500.0,0.00019798,2]
[359696953,1746259840266,-336.8593242,0.00019799,2]
[359696954,1746259840275,-1000.0,0.000198,2]
[359696955,1746259840285,-164.02505975,0.00019886,2]
[359696956,1746259840294,-164.02505975,0.00019893,2]
[359696957,1746259840304,-164.02505975,0.000199,2]
[359696958,1746259840313,-164.335077,0.000199,2]
[359696959,1746259840322,-200.79647072,0.000199,2]
[359696960,1746259840331,-205.57268741,0.000199,3]
[359696961,1746259840341,-525.13930562,0.000199,2]
[359696962,1746259840350,-513.8096182,0.00019971,2]
[359696963,1746259840359,-259.17221031,0.00019971,2]
[359696964,1746259840368,-2012.61,0.00019971,2]
[359696965,1746259840378,-506.5733682,0.00019971,2]
[359696966,1746259840388,-514.44963635,0.00019971,2]
[359696967,1746259840397,-500.0,0.00019973,2]
[359696968,1746259840406,-502.5100849,0.00019973,2]
[359696969,1746259840416,-500.0,0.00019973,2]
[359696970,1746259840425,-500.0,0.00019973,2]
[359696971,1746259840436,-500.0,0.00019973,2]
[359696972,1746259840447,-502.36719085,0.00019973,2]
[359696973,1746259840456,-450.0,0.00019983,2]
[359696974,1746259840465,-2012.61,0.00019985,2]
[359696975,1746259840475,-2012.61,0.00019985,2]
[359696976,1746259840486,-2012.61,0.00019985,2]
[359696977,1746259840495,-500.0,0.00019985,2]
[359696978,1746259840505,-500.0,0.00019985,2]
[359696979,1746259840516,-500.0,0.00019985,2]
[359696980,1746259840525,-450.0,0.00019985,2]
[359696981,1746259840534,-450.0,0.00019985,2]
[359696982,1746259840543,-450.0,0.00019985,2]
[359696983,1746259840552,-450.0,0.00019985,2]
[359696984,1746259840561,-450.0,0.00019985,2]
[359696985,1746259840569,-450.0,0.00019985,2]
[359696986,1746259840579,-450.0,0.00019985,2]
[359696987,1746259840587,-450.0,0.00019985,2]
[359696988,1746259840597,-450.0,0.00019985,2]
[359696989,1746259840607,-450.0,0.00019985,2]
[359696990,1746259840616,-450.0,0.00019985,2]
[359696991,1746259840625,-652.2,0.00019985,2]
[359696992,1746259840634,-484.64,0.00019985,2]
[359696993,1746259840643,-450.0,0.00019985,2]
[359696994,1746259840652,-450.0,0.00019985,2]
[359696995,1746259840661,-450.0,0.00019985,2]
[359696996,1746259840670,-450.0,0.00019985,2]
[359696997,1746259840679,-450.0,0.00019985,2]
[359696998,1746259840688,-471.84,0.00019985,2]
[359696999,1746259840698,-555.32,0.00019985,2]
[359697000,1746259840707,-4381.86,0.00019985,2]
[359697001,1746259840716,-466.11887136,0.00019985,2]
[359697002,1746259840725,-450.0,0.00019985,2]
[359697003,1746259840734,-1033.93,0.00019985,2]
[359697004,1746259840744,-450.0,0.00019985,2]
[359697005,1746259840753,-450.0,0.00019985,2]
[359697006,1746259840762,-450.0,0.00019985,2]
[359697007,1746259840771,-450.0,0.00019985,2]
[359697008,1746259840781,-450.0,0.00019985,2]
[359697009,1746259840790,-562.94038197,0.00019985,2]
[359697010,1746259840800,-398.2486717,0.00019985,2]
[359697011,1746259840809,-1777.06,0.00019985,2]
[359697012,1746259840818,-450.0,0.00019985,2]
[359697013,1746259840828,-450.0,0.00019985,2]
[359697014,1746259840837,-533.2085114,0.00019985,2]
[359697015,1746259840846,-450.0,0.00019985,2]
[359697016,1746259840856,-452.51893086,0.00019985,2]
[359697017,1746259840865,-456.68072204,0.00019985,2]
[359697018,1746259840874,-558.496662,0.00019985,2]
[359697019,1746259840883,-450.0,0.00019985,2]
[359697020,1746259840893,-450.0,0.00019985,2]
[359697021,1746259840902,-450.0,0.00019985,2]
[359697022,1746259840911,-450.0,0.00019985,2]
[359697023,1746259840920,-1424.87966567,0.00019985,2]
[359697024,1746259840930,-145408.59562438,0.00019986,2]
[359697025,1746259840939,-42157.1182596,0.00019986,2]
[359697026,1746259840949,-302065.084194,0.00019986,2]
[359697027,1746259840958,-12508.562496,0.00019986,2]
[359697028,1746259840968,-200.0,0.00019986,2]
[359697029,1746259840978,-9523.84125856,0.0001999,2]
[359697030,1746259840987,-1424.87966567,0.0001999,2]
[359697031,1746259840997,-1424.87966567,0.0001999,2]
[359697032,1746259841006,-327705.51022003,0.00019995,2]
[359697033,1746259841016,-878.0,0.00019999,2]
[359697034,1746259841025,-6756.0,0.00019999,2]
[359697035,1746259841034,-153.0,0.00019999,2]
[359697036,1746259841044,-4008.0,0.00019999,2]
[359697037,1746259841053,-500.0,0.00019999,2]
[359697038,1746259841062,-679.71892541,0.00019999,2]
[359697039,1746259841072,-500.0,0.00019999,2]
[359697040,1746259841082,-500.0,0.00019999,2]
[359697041,1746259841091,-300.0,0.00019999,2]
[359697042,1746259841101,-300.0,0.00019999,2]
[359697043,1746259841110,-300.0,0.00019999,2]
[359697044,1746259841119,-3023.60712475,0.00019999,2]
[359697045,1746259841301,-1001.1282,0.00019999,2]
[359697046,1746259841314,-308.22111321,0.00019999,2]
[359697047,1746259841323,-500.0,0.00019999,2]
[359697048,1746259841333,-500.0,0.00019999,2]
[359697049,1746259841342,-500.0,0.00019999,2]
[359697050,1746259841352,-500.0,0.00019999,2]
[359697051,1746259841361,-500.0,0.00019999,2]
[359697052,1746259841371,-500.0,0.00019999,2]
[359697053,1746259841381,-500.0,0.00019999,2]
[359697054,1746259841390,-500.0,0.00019999,2]
[359697055,1746259841400,-628.07395844,0.00019999,2]
[359697056,1746259841410,-500.0,0.00019999,2]
[359697057,1746259841419,-500.0,0.00019999,2]
[359697058,1746259841430,-500.0,0.00019999,2]
[359697059,1746259841444,-500.0,0.00019999,2]
[359697060,1746259841453,-500.0,0.00019999,2]
[359697061,1746259841462,-500.0,0.00019999,2]
[359697062,1746259841472,-370.243055,0.00019999,2]
[359697063,1746259841481,-500.0,0.00019999,2]
[359697064,1746259841491,-500.0,0.00019999,2]
[359697065,1746259841501,-500.0,0.00019999,2]
[359697066,1746259841511,-500.0,0.00019999,2]
[359697067,1746259841520,-409.56184418,0.00019999,2]
[359697068,1746259841531,-500.0,0.00019999,2]
[359697069,1746259841541,-500.0,0.00019999,2]
[359697070,1746259841551,-500.0,0.00019999,2]
[359697071,1746259841560,-500.0,0.00019999,2]
[359697072,1746259841569,-500.0,0.00019999,2]
[359697073,1746259841579,-500.0,0.00019999,2]
[359697074,1746259841589,-500.0,0.00019999,2]
[359697075,1746259841598,-500.0,0.00019999,2]
[359697076,1746259841607,-500.0,0.00019999,2]
[359697077,1746259841617,-500.0,0.00019999,2]
[359697078,1746259841626,-500.0,0.00019999,2]
[359697079,1746259841635,-500.0,0.00019999,2]
[359697080,1746259841645,-500.0,0.00019999,2]
[359697081,1746259841655,-192.3518044,0.00019999,2]
[359697082,1746259841664,-2012.61,0.00019999,2]
[359697083,1746259841674,-2012.61,0.00019999,2]
[359697084,1746259841683,-2012.61,0.00019999,2]
[359697085,1746259841694,-2012.61,0.00019999,2]
[359697086,1746259841704,-2012.61,0.00019999,2]
[359697087,1746259841713,-2012.61,0.00019999,2]
[359697088,1746259841723,-2012.61,0.00019999,2]
[359697089,1746259841734,-2012.61,0.00019999,2]
[359697090,1746259841744,-2012.61,0.00019999,2]
[359697091,1746259841754,-2012.61,0.00019999,2]
[359697092,1746259841763,-2012.61,0.00019999,2]
[359697093,1746259841773,-2012.61,0.00019999,2]
[359697094,1746259841783,-2012.61,0.00019999,2]
[359697095,1746259841793,-2012.61,0.00019999,2]
[359697096,1746259841803,-2012.61,0.00019999,2]
[359697097,1746259841813,-2012.61,0.00019999,2]
[359697098,1746259841823,-2012.72049907,0.00019999,2]
[359697099,1746259841833,-150.0,0.00019999,2]
[359697100,1746259841845,-500.0,0.00019999,2]
[359697101,1746259841855,-500.0,0.00019999,2]
[359697102,1746259841864,-150.0,0.00019999,2]
[359697103,1746259841874,-150.0,0.00019999,2]
[359697104,1746259841884,-500.0,0.00019999,2]
[359697105,1746259841893,-500.0,0.00019999,2]
[359697106,1746259841903,-500.0,0.00019999,2]
[359697107,1746259841913,-500.0,0.00019999,2]
[359697108,1746259841923,-500.0,0.00019999,2]
[359697109,1746259841933,-500.0,0.00019999,2]
[359697110,1746259841942,-500.0,0.00019999,2]
[359697111,1746259841952,-500.0,0.00019999,2]
[359697112,1746259841961,-587.97322185,0.00019999,2]
[359697113,1746259841971,-2018.0,0.00019999,2]
[359697114,1746259841980,-271.4745152,0.0002,2]
[359697115,1746259841990,-1190671.10428442,0.0002,2]
[359697116,1746259842000,-1479276.66904109,0.0002,2]
[359697117,1746259842009,-91698.92907707,0.0002,2]
[359697118,1746259842019,-301.4080882,0.0002,2]
[359697119,1746259842029,-10000.0,0.0002,2]
[359697120,1746259842038,-1483.45349757,0.0002,2]
[359697121,1746259842048,-4305.94775952,0.0002,2]
[359697122,1746259842058,-481.47231778,0.0002,2]
[359697123,1746259842068,-50000.0,0.0002,2]
[359697124,1746259842077,-3054.93258235,0.0002,2]
[359697125,1746259842087,-5655.83784573,0.0002,2]
[359697126,1746259842097,-35820.69892874,0.0002,4]
[359697127,1746259842107,-778357.20629796,0.0002,2]
[359697128,1746259842461,-355.57407442,0.0002,2]
[359697133,1746259856840,-484.416,0.00019789,2]
[359697134,1746260026748,296.074194,0.00019589,2]
[359697135,1746260127068,310.0,0.00018974,2]